[Event "Frauenbundesliga 2024-25"]
[Site "Germany"]
[Date "2025.01.26"]
[Round "4.5"]
[White "Agrest, Inna"]
[Black "Guichard, Pauline"]
[Result "1/2-1/2"]
[Annotator "TA"]
[ECO "C65"]
[WhiteElo "2159"]
[BlackElo "2357"]
[PlyCount "211"]
[EventDate "2024.11.06"]
[EventType "team-tourn"]
[EventCountry "GER"]
[SourceTitle "playchess.com"]
[Source "ChessBase"]
[SourceQuality "1"]
[TimeControl "40/5400+30:1800+30"]

{[%evp 12,211,22,8,9,15,15,12,10,22,13,5,6,0,0,0,0,0,19,0,0,0,0,-20,-7,0,6,-12,-21,-8,-22,-20,11,4,79,83,108,108,103,100,122,76,111,116,136,139,237,227,225,243,247,206,242,178,223,203,230,238,231,204,202,219,212,116,89,126,114,123,153,146,172,164,166,166,178,164,266,260,247,206,195,0,233,0,244,231,241,231,564,556,997,949,1203,1099,1288,715,616,0,1239,740,1307,1268,1006,668,1028,914,1012,714,977,934,1166,900,1357,1348,1272,1253,2849,2816,29980,5061,29982,1432,1442,658,1565,1614,1260,115,121,0,0,0,0,0,0,0,0,0,0,0,0,0,0,0,0,0,0,0,0,0,0,0,0,-269,0,0,0,0,0,0,0,-1493,-1532,-1475,-1616,-1923,-1493,-992,-566,-683,-361,-395,-241,-29993,-29994,-29994,-29968,-29969,-29970,-29969,-29971,-29970,-29971,-29965,-10819,-5114,-324,-316,-181,-402,-317,-308,-229,-314,-128,-83,-27,-47,0,0,0,-131]} 1. e4 {[%emt 0:00:57]} e5 {[%emt 0:00:08]} 2. Nf3 {[%emt 0:00:11]} Nc6 {[%emt 0:00:08]} 3. Bb5 {[%emt 0:00:02]} Nf6 {[%emt 0:00:06]} 4. d3 {[%emt 0:00:40]} Bc5 {[%emt 0:00:11]} 5. O-O {[%emt 0:00:57]} d6 {[%emt 0:05:43]} 6. c3 {[%emt 0:00:24]} O-O {[%emt 0:01:19]} 7. Bg5 {[%emt 0:07:16]} h6 {[%emt 0:04:58] C65: Ruy Lopez: Berlin Defence (3...Nf6), unusual lines and 4 0-0 Bc5.} 8. Bh4 {[%emt 0:02:02]} a6 {[%emt 0:02:49]} 9. Ba4 {[%emt 0:05:40]} Ba7 {[%emt 0:03:15]} 10. Nbd2 {[%emt 0:04:39]} Re8 {[%emt 0:04:58]} 11. Bxc6 $146 {[%emt 0:18:05]} (11. Re1 b5 12. Bb3 Na5 13. Bc2 c5 14. Nf1 Be6 15. Ne3 Rc8 16. h3 Nc6 17. Nh2 {0-1 Ivic,V (2625)-Niemann,H (2637) Junior Speed Qual blitz 2022 (1.16)}) 11... bxc6 {[%emt 0:00:06]} 12. Nc4 {[%emt 0:00:07]} Rb8 {[%emt 0:04:00]} 13. b4 {[%emt 0:03:39]} c5 {[%emt 0:03:56]} 14. a3 {[%emt 0:05:03]} Qe7 {[%emt 0:12:51]} 15. Bxf6 {[%emt 0:18:55]} Qxf6 {[%emt 0:00:16]} 16. Nfd2 {[%emt 0:00:23]} Qg5 {[%emt 0:06:00]} 17. Kh1 {[%emt 0:04:04]} Re6 {[%emt 0:03:40]} 18. Qe2 {[%emt 0:05:29]} Rg6 {[%emt 0:01:26][%csl Gg6][%cal Rg5g2]} 19. f3 {[%emt 0:00:21] Successful Defense White} h5 {[%emt 0:08:16]} 20. Rfb1 {[%emt 0:02:01]} Be6 {[%emt 0:02:16]} 21. Nb3 {[%emt 0:05:33]} cxb4 {[%emt 0:19:02]} 22. axb4 {[%emt 0:00:19]} h4 {[%emt 0:00:09]} (22... d5 $11 23. exd5 Bxd5) 23. Rxa6 $16 {[%emt 0:03:57]} Bxc4 {[%emt 0:02:58]} 24. dxc4 {[%emt 0:00:33]} Be3 {[%emt 0:00:03]} 25. Ra2 {[%emt 0:03:17]} Bf4 {[%emt 0:04:38]} 26. Nd2 {[%emt 0:01:44]} ({White should try} 26. Rba1) 26... Re8 {[%emt 0:00:09]} 27. Nf1 {[%emt 0:01:15]} Kh7 {[%emt 0:00:40]} 28. b5 {[%emt 0:03:09]} Ree6 {[%emt 0:01:40]} (28... f5 $16 29. Rd1 Rge6) 29. Ra7 $1 $18 {[%emt 0:01:38]} Qd8 {[%emt 0:00:20]} 30. Rba1 {[%emt 0:00:48]} Re8 {[%emt 0:02:02]} 31. R1a2 {[%emt 0:01:11]} Qb8 {[%emt 0:02:57]} 32. Qf2 {[%emt 0:00:41]} Bg5 {[%emt 0:00:27]} 33. R2a6 {[%emt 0:01:12]} Rf8 {[%emt 0:00:29]} 34. Qa2 {[%emt 0:00:23]} Qd8 {[%emt 0:02:44] Black is weak on the light squares} 35. Ra8 {[%emt 0:00:35]} Qe7 {[%emt 0:00:05]} 36. Rxf8 {[%emt 0:00:34]} Qxf8 {[%emt 0:00:02]} 37. Qc2 {[%emt 0:00:32]} (37. Ra8 $1 $18 {[%cal Ra8f8]} Qe7 38. h3) 37... h3 $16 {[%emt 0:02:37]} 38. g3 {[%emt 0:00:38]} Rf6 {[%emt 0:00:19]} 39. Qe2 {[%emt 0:00:23]} Qb8 {[%emt 0:01:27]} 40. Kg1 $1 {[%emt 0:00:37]} g6 {[%emt 0:00:32][%cal Oc7c6]} 41. Ne3 {[%emt 0:16:09]} Bxe3+ {[%emt 0:01:53]} 42. Qxe3 $18 {[%emt 0:00:04][%mdl 4096] Endgame KQR-KQR. White is a pawn up.} Kg7 {[%emt 0:00:35]} 43. Kf2 {[%emt 0:02:08]} Qb7 {[%emt 0:07:41]} (43... Re6 {is a better defense.} 44. Qa7 Qd8) 44. Ke2 {[%emt 0:02:30]} Qc8 {[%emt 0:01:57]} 45. Qg5 {[%emt 0:10:07]} Qb7 {[%emt 0:01:48]} 46. Qe3 {[%emt 0:01:10]} Qc8 $1 {[%emt 0:00:08]} 47. Kf2 $2 {[%emt 0:00:47]} (47. Qa7 $18) 47... Qb8 $2 {[%emt 0:01:21]} (47... Qb7 $11 {and Black has nothing to worry.}) 48. Qa7 {[%emt 0:00:42]} Qc8 {[%emt 0:00:31]} 49. Ke2 {[%emt 0:00:49]} Qh8 $2 {[%emt 0:07:42]} (49... Re6 {is a better chance.} 50. Qa8 Qxa8 51. Rxa8 Re7) 50. Rc6 {[%emt 0:00:29]} (50. Qxc7 Qh5 51. g4 (51. Rxd6 $2 Qxf3+ 52. Kd2 Qg2+ 53. Kc1 Rf2 $19) 51... Qg5 $11) 50... g5 {[%emt 0:10:09][%cal Og5g4]} 51. g4 {[%emt 0:00:12]} (51. Rxc7 g4 52. fxg4 Kg6 $18) 51... Rf4 {[%emt 0:00:32]} 52. Rxc7 {[%emt 0:00:20]} Qd8 {[%emt 0:00:26]} 53. Rd7 {[%emt 0:00:54]} Qc8 {[%emt 0:00:16]} 54. Rc7 {[%emt 0:00:10]} (54. Rxd6 Qxc4+ 55. Kf2 Qxb5 $11 (55... Qxc3 56. Qe3 $11)) (54. c5 $142) 54... Qd8 $1 {[%emt 0:00:05]} 55. Qb6 {[%emt 0:00:13][%cal Oc7f7]} Qa8 {[%emt 0:00:22]} 56. Ra7 {[%emt 0:00:57]} Qc8 {[%emt 0:01:46]} 57. Ra4 {[%emt 0:00:40]} (57. Qxd6 Qxc4+ 58. Qd3 Qb3 $16) 57... Rxe4+ {[%emt 0:01:17]} 58. fxe4 {[%emt 0:00:34]} Qxg4+ {[%emt 0:00:05]} 59. Kd2 {[%emt 0:00:26]} (59. Ke1 Qxe4+ 60. Kd2 Qg2+ 61. Kc1 Qh1+ 62. Kb2 Qxh2+ 63. Kb3 Qh1 64. Qxd6 Qb1+ 65. Ka3 Qe1 $16) 59... Qg2+ {[%emt 0:00:52]} 60. Kd3 {[%emt 0:00:41]} Qxh2 {[%emt 0:00:45]} 61. Qxd6 {[%emt 0:00:29]} Qg3+ {[%emt 0:00:33]} 62. Kc2 {[%emt 0:00:07]} h2 {[%emt 0:00:24]} 63. Ra1 {[%emt 0:00:13]} Qg2+ {[%emt 0:00:37]} 64. Kb3 {[%emt 0:00:23]} Qxe4 {[%emt 0:00:02]} 65. Qc6 {[%emt 0:00:59]} (65. Rf1 $142 g4 66. Qf6+ Kh7 67. Qxf7+ Kh6 68. Qf6+ Qg6 69. Qh8+ (69. Qxe5 g3 $18) 69... Qh7 70. Rf6+ (70. Qxe5 Qg6 $18) 70... Kg5 71. Qxh7) 65... Qe3 {[%emt 0:00:33]} 66. b6 {[%emt 0:00:45]} (66. Rf1 $142 Qa7 67. b6 Qe7 68. Qc7 Qe8 69. b7 h1=Q 70. Rxh1 e4 71. b8=Q (71. b8=R Qe6 $18)) 66... Qg1 {[%emt 0:00:06]} 67. Ka2 {[%emt 0:00:32]} Qf2+ {[%emt 0:00:22]} 68. Ka3 {[%emt 0:00:08]} Qg1 {[%emt 0:00:04]} 69. Qh1 $2 {[%emt 0:00:52]} (69. Rxg1 $18 {and the rest is easy.} hxg1=Q 70. b7 Qc1+ 71. Kb4) 69... Qc5+ $16 {[%emt 0:00:02]} 70. Kb3 {[%emt 0:00:18]} ({White has to play} 70. Ka4 $16 Qxb6 71. Rd1 (71. Qxh2 Qa6+ 72. Kb3 Qxa1 $14)) 70... Qxb6+ $11 {[%emt 0:00:06]} 71. Kc2 {[%emt 0:00:09]} Qf2+ {[%emt 0:00:44]} 72. Kb3 {[%emt 0:00:23][%cal Oc4c5]} Qb6+ {[%emt 0:00:15]} 73. Kc2 {[%emt 0:00:44]} Qf2+ {[%emt 0:00:05]} 74. Kd3 {[%emt 0:00:18]} f5 {[%emt 0:01:53] ( -> ...e4+) Wards off Qe4} 75. c5 {[%emt 0:00:09]} e4+ $1 {[%emt 0:00:45]} (75... Qxc5 $2 76. Qxh2 f4 77. Kc2 $18) 76. Kc4 {[%emt 0:00:05]} Qe2+ {[%emt 0:01:23]} 77. Kd5 {[%emt 0:00:29]} g4 $1 {[%emt 0:00:36]} 78. Qc1 {[%emt 0:01:58]} (78. Qb1 $5 Qd2+ $8 79. Ke6 Qxc3 80. Kxf5 Qf6+ (80... Qxc5+ 81. Kxg4 Qc8+ 82. Kf4 $16) 81. Kxg4 Qf3+ 82. Kh4 Qf4+ 83. Kh3 h1=Q+ 84. Qxh1 Qf5+ 85. Kg3 Qg5+ 86. Kh2 Qf4+ 87. Kh3 $11) 78... e3 {[%emt 0:00:33]} 79. Qb1 {[%emt 0:00:15][%cal Od5e5] Prevents Qd3+} Qf3+ {[%emt 0:00:32]} 80. Ke5 {[%emt 0:00:18] Ra7+ would kill now.} Kg6 {[%emt 0:00:27] Threatens to win with ...e2.} (80... e2 81. Ra7+ Kg6 82. Qb6+) 81. Qb6+ {[%emt 0:00:48]} Kh5 {[%emt 0:00:06]} 82. Qb1 $2 {[%emt 0:00:36][%mdl 8192] [#]} (82. Qe6 $11 {and White is okay.}) 82... Kg5 $2 {[%emt 0:00:43]} (82... Kh4 $1 $19 83. Qh1 (83. Qxf5 e2 $17) 83... Kh3) 83. c6 $1 {[%emt 0:00:18]} (83. Qd3 Kh4 (83... h1=R 84. Qd8+ Kh5 85. Rxh1+ Qxh1 86. Qh8+ Kg5 87. Qxh1 e2 88. c6) 84. Qd6 (84. Qxf5 e2 $17) 84... e2 $17 (84... h1=B $2 85. Rxh1+ Kg3 86. Ra1 $18)) 83... g3 {[%emt 0:00:35]} (83... Qxc6 84. Qxf5+ Kh4 85. Kd4) 84. c7 {[%emt 0:00:15]} Qf4+ {[%emt 0:00:05]} 85. Ke6 {[%emt 0:00:04]} Qc4+ {[%emt 0:00:16]} 86. Kd7 $2 {[%emt 0:00:51][%mdl 8192]} (86. Kd6 $11 g2 (86... Qxc3 87. Qa2 $11) 87. Ra5 Qf4+ (87... g1=B 88. Qxf5+ Kh4 89. Qf6+ Kg3 90. Rg5+) 88. Ke6 Qc4+ (88... g1=Q 89. Rxf5+ Kh6 90. Rxf4 $11) (88... Qxc7 89. Qxf5+ Kh6 90. Qh3+ Kg7 91. Rg5+ Kf8 92. Qh8#) 89. Kd6) 86... Qd5+ $19 {[%emt 0:00:14]} (86... Qxc3 87. c8=Q (87. c8=B $2 g2 $19) 87... Qg7+ 88. Kd6 Qf6+ 89. Kd5 Qf7+ 90. Qe6 h1=Q+ 91. Qxh1 Qb7+ 92. Kc5) 87. Kc8 {[%emt 0:00:58]} g2 {[%emt 0:00:29]} 88. Kb8 {[%emt 0:00:11]} h1=Q {[%emt 0:01:33]} (88... h1=R 89. c8=Q Rxb1+ 90. Rxb1 $17) 89. c8=Q {[%emt 0:00:18] Against Qa8+} Qe5+ {[%emt 0:00:31]} 90. Ka7 {[%emt 0:00:47]} Qe7+ {[%emt 0:00:29]} 91. Ka6 {[%emt 0:00:28]} Qh6+ {[%emt 0:00:32]} 92. Ka5 $2 {[%emt 0:00:52]} (92. Qb6 $19 Qxb6+ 93. Kxb6) 92... Qa7+ {[%emt 0:00:22]} 93. Kb4 {[%emt 0:00:13]} Qd6+ {[%emt 0:00:38]} 94. Kc4 {[%emt 0:00:40]} Qf7+ {[%emt 0:00:10]} 95. Kb5 {[%emt 0:00:09]} Qfd5+ {[%emt 0:00:44]} 96. Ka4 {[%emt 0:00:07]} Qd7+ {[%emt 0:00:35]} 97. Qxd7 {[%emt 0:00:33]} Qxd7+ {[%emt 0:00:03]} 98. Kb4 {[%emt 0:00:32]} Qd6+ $2 {[%emt 0:00:59]} (98... Qb7+ 99. Kc4 Qxb1 100. Rxb1 f4) 99. Kc4 {[%emt 0:00:22]} Kf4 {[%emt 0:00:28]} (99... Kg4 $142 100. Qb7 Qf4+ 101. Kb3 (101. Kd3 Qf1+ $17) 101... Kg3 102. Qg7+ (102. Rg1 $2 Qe4 $19) 102... Qg4 103. Qe5+ f4) 100. Qe1 $2 {[%emt 0:01:19]} (100. Qb7 {was forced.} Qe6+ (100... Kg3 101. Qg7+ Kf2 102. Ra2+ e2 103. Rxe2+ Kxe2 104. Qxg2+ Ke3 105. Qh3+ Kd2 106. Qxf5 $11) 101. Kd3) 100... Qe6+ {[%emt 0:00:29]} 101. Kb4 {[%emt 0:00:14]} Qb6+ {[%emt 0:00:17]} 102. Ka3 {[%emt 0:00:25] And now Qh4+ would win.} Kf3 {[%emt 0:00:30]} (102... Qd6+ $19 {and Black stays clearly on top.} 103. Kb3 Kf3) 103. Qd1+ $17 {[%emt 0:00:52] [#]} Kg3 $1 {[%emt 0:00:22][%mdl 1024] Black has strong compensation.} 104. Qe1+ $1 {[%emt 0:00:29]} Kf3 {[%emt 0:00:04]} (104... Kh3 $1 $15 {should be considered.} 105. Qe2 Kg3) 105. Qd1+ $11 {[%emt 0:00:29]} Kg3 {[%emt 0:00:05]} ({Black should play} 105... e2 $11 106. Qd3+ Kf4 107. Qxe2 g1=Q 108. Qc4+ Ke5 109. Rxg1 Qxg1) 106. Qe1+ $1 {[%emt 0:01:10] Never resign too early!   Weighted Error Value: White=0.52/Black=0.59  Loses game:     	White=2     	Black=1      Missed win:     	White=1     	Black=2      Mistake:       	White=4     	Black=6      Inaccurate:     	White=1     	Black=4      OK:         	White=25    	Black=15     Best:        	White=8     	Black=9      Strong:       	White=3     	Black=4} 1/2-1/2

[Event "Frauenbundesliga 2024-25"]
[Site "Germany"]
[Date "2025.01.26"]
[Round "4.5"]
[White "Peglau, Mirjam"]
[Black "Zhou, Lepu Coco"]
[Result "1-0"]
[Annotator "TA"]
[ECO "D27"]
[WhiteElo "1958"]
[BlackElo "2046"]
[PlyCount "75"]
[EventDate "2024.11.06"]
[EventType "team-tourn"]
[EventCountry "GER"]
[SourceTitle "playchess.com"]
[Source "ChessBase"]
[SourceQuality "1"]
[TimeControl "40/5400+30:1800+30"]

{[%evp 15,75,26,25,27,47,33,19,27,41,50,49,29,30,39,40,40,47,47,59,4,34,6,65,35,118,116,122,127,147,139,172,168,359,360,356,341,365,355,428,352,349,355,367,367,380,366,463,468,669,684,661,674,855,822,763,601,1220,1220,1220,1219,1219,1216]} 1. Nf3 d5 2. d4 e6 3. c4 dxc4 4. Nc3 Nf6 5. e3 a6 6. a4 c5 7. Bxc4 Nbd7 8. O-O Be7 9. dxc5 {D27: Queen's Gambit Accepted: Classical main line: 7 e4!? and 7 a4.} Nxc5 10. Qxd8+ Bxd8 11. b4 {The position is equal.} Nce4 12. Nxe4 Nxe4 13. Bb2 O-O $146 (13... Bf6 14. Bxf6 Nxf6 15. Rfd1 Bd7 16. Ne5 Ke7 17. Nxd7 Nxd7 18. Rac1 Rac8 19. Bb3 b5 {½-½ Yuan,Y (2092)-Zhang,L (2203) China zt 3.5 (Women) 2019 (5)}) 14. Rfd1 Be7 15. Bd3 Nf6 16. b5 Nd5 17. Bc4 ({White should try} 17. e4 $14 Nf6 18. e5) 17... axb5 18. Bxb5 b6 (18... Rd8 $11) 19. Bd4 Bb4 {White leaves nothing to chance now.} (19... Ba6 $14) 20. Bc6 $36 {[%mdl 2048] White is really pushing.} Ra6 21. Rdc1 {Inhibits Nc3.} Ba5 {[#]} 22. Ne5 $1 {White is more active.} Nb4 23. Bb5 f6 $2 (23... Ra8 24. Nc4 Ba6 25. Bxb6 (25. Nxb6 Bxb6 26. Bxb6 Nc2 $18) 25... Bxb6) 24. Bxa6 $18 Bxa6 25. Nc6 Nd3 26. Rcb1 e5 27. Nxa5 bxa5 28. Bb6 Rc8 29. Bxa5 Rc2 30. Be1 e4 31. a5 {White is clearly winning.} Re2 (31... Rc8 $142 32. Rb6 Ra8) 32. Rb6 Bc4 33. Bc3 Nc5 34. Rc6 Nb3 35. Re1 Rc2 36. Rxc4 Nxa5 37. Rc8+ Kf7 38. Rc7+ {Weighted Error Value: White=0.19 (very precise) /Black=0.65  Mistake:       	White=1     	Black=4      Inaccurate:     	White=2     	Black=1      OK:         	White=12    	Black=3      Best:        	White=1     	---} 1-0

[Event "Frauenbundesliga 2024-25"]
[Site "Germany"]
[Date "2025.01.26"]
[Round "4.6"]
[White "Matnadze Bujiashvili, Ann"]
[Black "Zozulia, Anna"]
[Result "1-0"]
[Annotator "TA"]
[ECO "E68"]
[WhiteElo "2315"]
[BlackElo "2233"]
[PlyCount "131"]
[EventDate "2024.11.06"]
[EventType "team-tourn"]
[EventCountry "GER"]
[SourceTitle "playchess.com"]
[Source "ChessBase"]
[SourceQuality "1"]
[TimeControl "40/5400+30:1800+30"]

{[%evp 23,131,12,12,4,0,5,3,0,10,0,0,0,45,58,59,53,57,54,50,59,55,62,56,52,52,54,53,44,51,43,49,31,76,30,42,7,17,0,38,42,39,39,38,33,60,48,67,50,65,56,63,62,100,106,112,57,68,50,50,50,212,203,212,182,304,281,482,460,464,483,478,461,602,567,942,929,937,904,758,759,29988,29989,29989,774,683,611,640,640,635,641,29984,29984,29991,29991,29992,29990,29989,0,29991,0,29989,29984,2979,1406,1401,1329,1478,1427,1398,1317]} 1. Nf3 {[%emt 0:00:30]} g6 {[%emt 0:00:24]} 2. c4 {[%emt 0:00:31]} Bg7 {[%emt 0:00:09]} 3. Nc3 {[%emt 0:00:05]} d6 {[%emt 0:01:43]} 4. d4 {[%emt 0:02:57]} Nf6 {[%emt 0:00:58]} 5. g3 {[%emt 0:00:24]} O-O {[%emt 0:00:50]} 6. Bg2 {[%emt 0:00:04]} Nbd7 {[%emt 0:00:48]} 7. O-O {[%emt 0:00:07]} e5 {[%emt 0:01:17]} 8. h3 {[%emt 0:00:06]} a6 {[%emt 0:02:22]} 9. e4 {[%emt 0:00:53]} b5 {[%emt 0:06:34]} 10. cxb5 {[%emt 0:07:27]} axb5 {[%emt 0:00:19]} 11. b4 {[%emt 0:00:16]} Bb7 {[%emt 0:24:41]} 12. Re1 {[%emt 0:01:27]} c6 {[%emt 0:05:37]} 13. dxe5 {[%emt 0:06:56] E68: King's Indian: Fianchetto: 6...Nbd7 7 0-0 e5 8 e4.} dxe5 {[%emt 0:01:44]} 14. Be3 {[%emt 0:03:44]} Qe7 $146 {[%emt 0:03:11]} (14... Ra3 15. Qc1 Qa8 16. Nd2 Rc8 17. Qb2 Bf8 18. Bf1 Ne8 19. Ndb1 Ra6 20. a4 Nd6 21. Nd2 Qb8 22. f3 Ba8 23. a5 Bb7 24. Red1 Re8 25. Nb3 Bc8 26. Nc5 {½-½ Hala,B (2234)-Stehno,P (2252) CZE-chT2V 0203 2002 (1)}) 15. Qb3 {[%emt 0:00:55] The position is equal.} Rfe8 {[%emt 0:01:38]} 16. Red1 {[%emt 0:03:36]} Bf8 {[%emt 0:02:55]} 17. a3 {[%emt 0:00:52]} Rad8 {[%emt 0:04:22]} 18. Nd2 {[%emt 0:02:42][%cal Bf3d2,Bd2b3,Bb3c5][%mdl 32]} Nb8 {[%emt 0:02:53]} 19. Qc2 {[%emt 0:12:38]} Bc8 {[%emt 0:04:14]} 20. Bb6 {[%emt 0:03:15]} Rd7 {[%emt 0:00:16]} 21. Bc5 {[%emt 0:03:05]} Qd8 {[%emt 0:01:38]} 22. Be3 {[%emt 0:01:04]} Rd6 {[%emt 0:06:39]} 23. Nb3 {[%emt 0:01:32]} Be6 {[%emt 0:00:28]} 24. Nc5 {[%emt 0:04:41]} Rxd1+ {[%emt 0:02:45]} 25. Rxd1 {[%emt 0:00:04]} Qc8 {[%emt 0:00:19]} 26. Nxe6 {[%emt 0:10:41]} Qxe6 {[%emt 0:00:28]} 27. Rd3 {[%emt 0:05:56]} Be7 {[%emt 0:03:03]} 28. Qd2 {[%emt 0:00:18]} (28. Nb1 $16) 28... Qc8 $11 {[%emt 0:00:29]} 29. f4 {[%emt 0:00:53]} Nbd7 {[%emt 0:07:14]} 30. f5 {[%emt 0:01:45]} Nf8 {[%emt 0:01:48]} 31. g4 {[%emt 0:00:49]} Rd8 {[%emt 0:00:30]} 32. Bf3 {[%emt 0:01:39]} Rxd3 {[%emt 0:00:44]} 33. Qxd3 {[%emt 0:00:02]} Qd8 {[%emt 0:04:46]} 34. Qc2 {[%emt 0:03:56]} N6d7 {[%emt 0:06:27]} 35. Nd1 {[%emt 0:03:47][%cal Bc3d1,Bd1f2,Bf2g4,Bg4h6,Bh6f5][%mdl 32] White is more active.} Qc7 {[%emt 0:00:15]} 36. Be2 {[%emt 0:00:52]} Qd6 {[%emt 0:01:09][%cal Oh7h6]} 37. Nf2 {[%emt 0:02:02]} Bd8 {[%emt 0:01:22]} 38. g5 {[%emt 0:07:12]} Bb6 {[%emt 0:00:24]} 39. Bxb6 {[%emt 0:00:08]} ({Better is} 39. Qc1 $1 $16) 39... Nxb6 $14 {[%emt 0:00:04]} 40. Ng4 {[%emt 0:00:17]} Nfd7 $1 {[%emt 0:01:51]} 41. Kg2 $36 {[%emt 0:38:30][%mdl 2048] White fights for an advantage.} gxf5 $2 {[%emt 0:08:36] Black is on the road to losing.} (41... Kf8 $14) 42. Nh6+ $18 {[%emt 0:00:00]} ({Not} 42. exf5 Nd5 $14) 42... Kf8 {[%emt 0:00:12]} 43. Nxf5 {[%emt 0:00:00]} Qg6 {[%emt 0:02:17] [#]} (43... Qe6 $142 44. h4 Nc4) 44. h4 $1 {[%emt 0:00:00]} h6 $2 {[%emt 0:01:39]} (44... Qe6 45. h5 Nc4) 45. Nxh6 {[%emt 0:00:00]} Nd5 {[%emt 0:06:11]} 46. Kf2 {[%emt 0:00:00] Prevents Ne3.} Ne7 {[%emt 0:06:35]} 47. Qd3 {[%emt 0:00:00]} Ke8 {[%emt 0:01:50]} 48. Nf5 {[%emt 0:00:00]} Nc8 {[%emt 0:02:41] [#]} 49. Bh5 $1 {[%emt 0:00:00][%mdl 512]} Qh7 {[%emt 0:00:06]} 50. Bg4 {[%emt 0:00:00]} Ndb6 {[%emt 0:03:50]} 51. Kg3 {[%emt 0:00:00]} Nc4 {[%emt 0:00:37] [#]} 52. Ng7+ $1 {[%emt 0:00:12][%mdl 512]} Kf8 {[%emt 0:00:40]} 53. Bf5 {[%emt 0:02:06]} (53. Ne6+ $142 fxe6 54. Qd8+ Kf7 55. Qd7+ (55. Qxc8 Qg6 $18) 55... Kf8 56. Qxc8+ (56. Qxh7 Ne3 $18) 56... Kg7 57. Bxe6 (57. Qxc6 Qg8 $18) 57... Nd6 58. Qd7+ (58. Qxc6 Qxe4 59. Qxe4 Nxe4+ 60. Kg4 Nd6 $18) 58... Kh8 59. Qd8+ (59. Qxd6 Qg7 60. Qd8+ Kh7 61. Bf5+ Qg6 62. Bxg6+ Kg7 63. Qf6+ Kg8 64. Qf7+ Kh8 65. Qh7#) 59... Ne8 60. Qxe8+ Kg7 61. Qf7+ (61. Qxc6 Qg6 62. Qc8 Qxe6 63. Qxe6 Kh7 64. g6+ Kh8 65. Qe8+ Kg7 66. Qf7+ Kh8 67. Qh7#) 61... Kh8 62. Qf8+ Qg8 63. Qxg8#) 53... Qh8 {[%emt 0:00:05] [#]} 54. h5 $1 {[%emt 0:03:31][%cal Bh4h5,Bh5h6][%mdl 32]} N8d6 {[%emt 0:00:56]} 55. h6 {[%emt 0:00:02]} Ke7 {[%emt 0:00:11]} 56. Bg4 {[%emt 0:00:36] Hoping for Qf3.} Qd8 {[%emt 0:01:05]} 57. Qf3 {[%emt 0:00:36]} Qb6 {[%emt 0:01:34]} 58. Qf6+ {[%emt 0:01:16]} Kf8 {[%emt 0:00:04]} 59. Ne6+ {[%emt 0:00:09]} Ke8 {[%emt 0:00:05]} 60. Ng7+ {[%emt 0:00:30]} Kf8 {[%emt 0:00:05] and ...Qg1+ should not be overlooked} 61. Ne6+ {[%emt 0:00:10]} Ke8 {[%emt 0:00:03]} 62. Qh8+ {[%emt 0:00:27]} Kd7 {[%emt 0:00:16] [#]} 63. Qd8+ $1 {[%emt 0:01:49][%mdl 512]} Qxd8 {[%emt 0:00:16]} 64. Nxd8+ {[%emt 0:00:02]} Kxd8 {[%emt 0:02:39]} 65. h7 {[%emt 0:00:04]} Nxe4+ {[%emt 0:00:11]} 66. Kh2 {[%emt 0:00:18] Weighted Error Value: White=0.61/Black=0.54  Loses game:     	---       	Black=1      Mistake:       	White=2     	Black=2      Inaccurate:     	White=1     	Black=7      OK:         	White=13    	Black=17     Best:        	White=3     	Black=3      Strong:       	White=1     	Black=1} 1-0